fUSD/lending_fUSD_20250423
["ID","MTS","AMOUNT","RATE_DAILY","PERIOD"]
[358776720,1745422232297,-1738.4466722,0.000199,2]
[358776721,1745422232311,-201.3627076,0.000199,2]
[358776722,1745422232321,-598.6372924,0.000199,2]
[358776778,1745422232833,-8935.92084276,0.000199,2]
[358776780,1745422232844,-140.37900367,0.00019922,2]
[358776782,1745422232855,-125.10735383,0.00019943,2]
[358776784,1745422232864,-159.87216592,0.00019973,2]
[358776786,1745422232874,-160.37476923,0.00019973,2]
[358776788,1745422232884,-500.0,0.00019973,2]
[358776790,1745422232896,-500.0,0.00019973,2]
[358776792,1745422232906,-501.04190365,0.00019973,2]
[358776794,1745422232916,-500.0,0.00019973,2]
[358776796,1745422232925,-153.29437322,0.00019973,2]
[358776798,1745422232935,-3482.52,0.0001999,2]
[358776800,1745422232945,-3482.52,0.0001999,2]
[358776802,1745422232955,-300.0,0.00019999,2]
[358776804,1745422232965,-666.0,0.00019999,2]
[358776806,1745422232975,-300.0,0.00019999,2]
[358776808,1745422232985,-300.0,0.00019999,2]
[358776810,1745422232994,-224.94,0.00019999,2]
[358776812,1745422233004,-313.41939827,0.00019999,2]
[358776814,1745422233013,-359.59309736,0.00019999,2]
[358776816,1745422233022,-197.71857276,0.00019999,2]
[358776817,1745422233032,-170.49716255,0.00019999,2]
[358776820,1745422233042,-292.3474217,0.00019999,2]
[358776822,1745422233052,-31530.48672371,0.0002,2]
[358776824,1745422233065,-620.26925004,0.0002,2]
[358776826,1745422233077,-800.0,0.0002,2]
[358776828,1745422233089,-18283.7842712,0.0002,2]
[358776830,1745422233101,-3396.28230896,0.0002,2]
[358776891,1745422233700,-6456.39,0.0002,2]
[358776988,1745422237981,-1357.36621302,0.0002,2]
[358776989,1745422238055,-6015.51191516,0.0002,2]
[358776990,1745422238067,-3129.5062008,0.0002,2]
[358776991,1745422238141,-1002.0,0.0002,2]
[358777009,1745422238542,-448.06,0.0002,2]
[358777010,1745422238554,-1872.26423884,0.0002,2]
[358777011,1745422238565,-4279962.76931005,0.0002,2]
[358777012,1745422238577,-2494318.525,0.0002,2]
[358777016,1745422238609,-403.099684,0.0002,2]
[358777019,1745422238621,-17173.47839999,0.0002,2]
[358777119,1745422239620,150.0,0.00027,120]
[358777151,1745422239919,150.0,0.000323,120]
[358777230,1745422240842,-293610.99211225,0.0002,2]
[358777233,1745422240854,-4494.70034621,0.0002,2]
[358777235,1745422240868,-30960.55143175,0.0002,2]
[358777319,1745422241678,-8425.64999999,0.0002,2]
[358777321,1745422241689,-1342.1589227,0.0002,2]
[358777324,1745422241700,-1950.0,0.0002,2]
[358777326,1745422241712,-789.33739908,0.0002,2]
[358777328,1745422241727,-549.14557173,0.0002,2]
[358777330,1745422241738,-4826639.97199304,0.0002,2]
[358777348,1745422241902,-1000.0,0.0002,2]
[358777489,1745422243231,-684.32794061,0.0002,2]
[358777491,1745422243243,-2771.452266,0.0002,2]
[358777493,1745422243254,-1545.62867822,0.0002,2]
[358777507,1745422243384,-284.01547885,0.0002,2]
[358777524,1745422243694,-756.10276132,0.0002,2]
[358777640,1745422244844,-307.80721796,0.0002,2]
[358777697,1745422246074,-550.82500162,0.0002,2]
[358777698,1745422246085,-5172.6766272,0.0002,2]
[358777699,1745422246097,-2184.53214047,0.0002,2]
[358777700,1745422246150,-1102.049995,0.0002,2]
[358777701,1745422246162,-27669.0,0.0002,2]
[358777702,1745422246236,-567.44896211,0.0002,2]
[358777703,1745422246248,-3228.98571117,0.0002,2]
[358777704,1745422246476,-2766.0,0.0002,2]
[358778292,1745422256370,999.67013774,0.00037808,60]
[358778825,1745422262085,-208.98266751,0.000199,2]
[358782053,1745422298950,500.0,0.000378,60]
[358782722,1745422306054,-201.33696712,0.000199,2]
[358783095,1745422311094,500.0,0.000378,60]
[358783096,1745422331093,500.0,0.000378,60]
[358783097,1745422354016,500.0,0.000378,60]
[358783098,1745422374114,293.52578,0.000378,60]
[358783099,1745422382555,-201.33696712,0.00019899,2]
[358783100,1745422431205,-98.66303288,0.00019899,2]
[358783101,1745422431229,-77.81526712,0.000199,2]
[358783102,1745422472950,184.09,0.00016712,2]
[358783103,1745422484438,1949.0,0.00037808,60]
[358783104,1745422513092,1500.0,0.00032877,120]
[358783105,1745422533580,-199.6118338,0.000198,2]
[358783106,1745422546884,1338.0508797,0.000378,120]
[358783107,1745422667626,550.4037756,0.00037808,60]
[358783108,1745422711246,-303.25620892,0.000196,2]
[358783109,1745422782091,-229.13931215,0.000196,2]
[358783110,1745422793284,181.49,0.00016135,2]
[358783111,1745422803346,-185.83625558,0.000196,2]
[358783112,1745422812822,-300.0,0.000196,2]
[358783113,1745422815330,-341.03123288,0.000196,2]
[358783115,1745422846706,-300.0,0.000196,2]
[358783116,1745422863130,-150.0,0.000196,2]
[358783118,1745422883886,-250.0,0.000196,2]
[358783119,1745422888511,-161.52858115,0.000196,2]
[358783120,1745422914568,-295.079432,0.000196,2]
[358783121,1745422922719,-144.04597732,0.000196,2]
[358783122,1745422922743,-24.19316768,0.00019699,2]
[358783124,1745422928133,-445.59567523,0.0001965,2]
[358783125,1745422939786,-25.01432477,0.0001965,2]
[358783126,1745422939810,-124.98567523,0.0001965,2]
[358783127,1745422955048,-150.0,0.00019552,2]
[358783129,1745423040499,189.09,0.00037808,60]
[358783130,1745423042739,-272.398216,0.00019552,2]
[358783131,1745423042762,-26.50510294,0.00019579,2]
[358783133,1745423047664,802.6508529,0.00016908,2]
[358783134,1745423047997,802.6508529,0.0001702,2]
[358783135,1745423048387,29.1182942,0.0001752,2]
[358783136,1745423048417,773.5325587,0.0001752,2]
[358783137,1745423048716,802.6508529,0.00017675,2]
[358783138,1745423049146,423.8165884,0.00017809,2]
[358783139,1745423049174,378.8342645,0.00017809,2]
[358783140,1745423049500,802.6508529,0.00018093,2]
[358783141,1745423049899,802.6508529,0.00018449,2]
[358783142,1745423050003,-400.0,0.00019579,2]
[358783143,1745423050290,15.8640297,0.00018715,2]
[358783144,1745423050315,786.7868232,0.00018715,2]
[358783145,1745423103324,-401.07179086,0.00019046,2]
[358783147,1745423111678,-202.82441493,0.00019046,2]
[358783149,1745423117165,-164.08469051,0.00019046,2]
[358783150,1745423121868,370.334863,0.0001895,2]
[358783151,1745423122450,-34.6699566,0.00019046,2]
[358783152,1745423122802,-253.67360302,0.00019183,2]
[358783153,1745423124540,-152.0,0.0001903,2]
[358783154,1745423125067,-152.0,0.0001903,2]
[358783155,1745423150232,-168.96440878,0.0001903,2]
[358783156,1745423158877,-175.41866612,0.0001903,2]
[358783157,1745423160738,229.64,0.00026166,120]
[358783158,1745423160930,229.64,0.00028544,120]
[358783159,1745423161842,-183.43379091,0.0001903,2]
[358783163,1745423196343,520.813492,0.00018934,2]
[358783164,1745423199187,-166.08,0.0001903,2]
[358783166,1745423240936,322.0648218,0.0001893,2]
[358783167,1745423240959,857.04384788,0.0001893,2]
[358783168,1745423242630,-158.43565893,0.0001903,2]
[358783169,1745423284195,-245.98868839,0.00019029,2]
[358783171,1745423292405,-321.44,0.00019004,2]
[358783172,1745423302839,1142.95615212,0.0001893,2]
[358783173,1745423302859,2000.0,0.0001893,2]
[358783174,1745423302880,2000.0,0.0001893,2]
[358783175,1745423302900,2000.0,0.0001893,2]
[358783176,1745423302921,827.80794788,0.0001893,2]
[358783177,1745423303323,-178.56,0.00019004,2]
[358783178,1745423315550,-248.43,0.00019004,2]
[358783179,1745423315579,-541.01131161,0.00019029,2]
[358783180,1745423315604,-167.08713385,0.0001903,2]
[358783181,1745423333409,1172.19205212,0.00017064,2]
[358783182,1745423333432,1149.56794788,0.00017064,2]
[358783183,1745423342251,-254.01131161,0.00019029,2]
[358783185,1745423364168,850.43205212,0.00018876,2]
[358783186,1745423364191,2000.0,0.00018876,2]
[358783187,1745423364213,2000.0,0.00018876,2]
[358783188,1745423364239,2468.08794788,0.00018876,2]
[358783189,1745423392696,246.76,0.00018876,2]
[358783190,1745423393279,-45.98868839,0.00019029,2]
[358783191,1745423393303,-152.89336765,0.0001903,2]
[358783192,1745423402842,-316.66,0.00019029,2]
[358783203,1745423432255,-583.34,0.00019029,2]
[358783204,1745423432265,-133.80637867,0.00019029,2]
[358783205,1745423432276,-16.19362133,0.00019029,2]
[358783206,1745423432286,-1812.3517724,0.0001903,2]
[358783207,1745423432353,-1848.81024,0.0001903,2]
[358783208,1745423432365,-675.08482176,0.0001903,2]
[358783231,1745423432814,-1130.50501107,0.0001903,2]
[358783232,1745423432852,-12549.88469912,0.0001903,2]
[358783233,1745423432863,-5929.77042941,0.0001903,2]
[358783234,1745423432873,-170.22957049,0.0001903,2]
[358783235,1745423432885,-2174.09042951,0.0001903,2]
[358783236,1745423432894,-229.64,0.0001903,2]
[358783237,1745423432904,-150.0,0.00019131,2]
[358783239,1745423432914,-1257.85639698,0.00019183,2]
[358783240,1745423432923,-2068.41317351,0.00019183,2]
[358783241,1745423432934,-1323.45682649,0.00019183,2]
[358783243,1745423432943,-2226.54317851,0.00019328,2]
[358783245,1745423432955,-95.21682149,0.00019328,2]
[358783247,1745423432964,-799.66010099,0.00019459,2]
[358783249,1745423432974,-405.12307752,0.00019579,2]
[358783257,1745423433034,-65.04181954,0.00019579,2]
[358783259,1745423433043,-257.86432477,0.0001965,2]
[358783260,1745423433053,-720.90565918,0.0001965,2]
[358783313,1745423435431,1185.5809,0.0001893,2]
[358783314,1745423438392,-9279.08434082,0.0001965,2]
[358783315,1745423438402,-388.19,0.0001965,2]
[358783316,1745423438412,-2893.64,0.0001965,2]
[358783317,1745423438423,-485.86,0.0001965,2]
[358783318,1745423438435,-150.99,0.0001965,2]
[358783319,1745423438445,-1239.15,0.0001965,2]
[358783320,1745423438454,-150.99,0.0001965,2]
[358783321,1745423438464,-150.0,0.00019671,2]
[358783322,1745423438474,-1029.62,0.00019671,2]
[358783323,1745423438485,-1815.55,0.00019671,2]
[358783324,1745423438495,-6254.86859349,0.00019687,2]
[358783325,1745423438506,-300.0,0.00019699,2]
[358783326,1745423438517,-250.0,0.00019723,2]
[358783327,1745423438528,-161.58656057,0.00019773,2]
[358783328,1745423438542,-1843.71073634,0.00019773,2]
[358783329,1745423438552,-1843.71073633,0.00019787,2]
[358783330,1745423438564,-1102.651,0.000198,2]
[358783331,1745423438575,-1843.71073633,0.00019801,2]
[358783332,1745423438585,-1843.71073633,0.00019815,2]
[358783333,1745423438595,-799.66010099,0.00019827,2]
[358783334,1745423438605,-1046.8282,0.00019838,2]
[358783335,1745423438615,-4555.2888,0.00019838,2]
[358783336,1745423438625,-1274.12,0.00019867,2]
[358783337,1745423438635,-377868.5761,0.00019873,2]
[358783338,1745423438645,-162.12386489,0.00019873,2]
[358783339,1745423438655,-500.0,0.00019873,2]
[358783340,1745423438665,-500.0,0.00019873,2]
[358783341,1745423438675,-500.0,0.00019873,2]
[358783342,1745423438685,-500.0,0.00019873,2]
[358783343,1745423438696,-500.0,0.00019873,2]
[358783344,1745423438707,-250.3876,0.00019886,2]
[358783345,1745423438718,-555.25149817,0.00019899,2]
[358783347,1745423438727,-38033.3555,0.000199,2]
[358783349,1745423438737,-285.94005369,0.000199,2]
[358783351,1745423438749,-675.22341288,0.000199,2]
[358783353,1745423438758,-2933.8359,0.000199,2]
[358783354,1745423438769,-1267.5585,0.000199,2]
[358783357,1745423438779,-2012.5339,0.000199,2]
[358783359,1745423438788,-161.58656057,0.000199,2]
[358783361,1745423438798,-266.32310327,0.000199,2]
[358783363,1745423438809,-555.25149816,0.00019913,2]
[358783365,1745423438819,-23900.0,0.00019938,2]
[358783366,1745423438830,-208.0,0.00019973,2]
[358783369,1745423438840,-500.0,0.00019973,2]
[358783370,1745423438850,-504.87009129,0.00019973,2]
[358783374,1745423438860,-14651.0,0.00019973,2]
[358783377,1745423438869,-500.0,0.00019973,2]
[358783379,1745423438879,-500.0,0.00019973,2]
[358783381,1745423438891,-502.14341741,0.00019973,2]
[358783383,1745423438900,-500.0,0.00019973,2]
[358783384,1745423438911,-500.0,0.00019973,2]
[358783387,1745423438921,-501.49227619,0.00019973,2]
[358783389,1745423438931,-500.0,0.00019973,2]
[358783391,1745423438941,-500.0,0.00019973,2]
[358783393,1745423438950,-501.80840205,0.00019973,2]
[358783395,1745423438960,-500.0,0.00019973,2]
[358783397,1745423438970,-500.0,0.00019973,2]
[358783399,1745423438979,-314.99822762,0.00019973,2]
[358783401,1745423438989,-160.13550805,0.00019973,2]
[358783403,1745423438998,-509.92508194,0.00019973,2]
[358783404,1745423439008,-214.89670127,0.00019973,2]
[358783406,1745423439018,-500.0,0.00019973,2]
[358783408,1745423439029,-500.0,0.00019973,2]
[358783410,1745423439038,-500.0,0.00019973,2]
[358783412,1745423439048,-500.0,0.00019973,2]
[358783414,1745423439057,-500.0,0.00019973,2]
[358783416,1745423439068,-500.0,0.00019973,2]
[358783419,1745423439079,-9443.8666285,0.00019986,2]
[358783420,1745423439089,-151.0,0.00019988,2]
[358783423,1745423439099,-164.41574676,0.0001999,2]
[358783425,1745423439109,-164.41574676,0.0001999,2]
[358783427,1745423439119,-164.41574676,0.0001999,2]
[358783429,1745423439129,-329.08517922,0.00019999,2]
[358783468,1745423439509,-300.0,0.00019999,2]
[358783471,1745423439533,-300.0,0.00019999,2]
[358783473,1745423439543,-541.95730772,0.00019999,2]
[358783474,1745423439553,-1000.0,0.00019999,2]
[358783476,1745423439564,-1000.0,0.00019999,2]
[358783478,1745423439574,-736.36514482,0.00019999,2]
[358783480,1745423439584,-3910817.21860563,0.0002,2]
[358783483,1745423439596,-2494318.525,0.0002,2]
[358783485,1745423439607,-2043.88510206,0.0002,2]
[358783499,1745423439739,-2213.3,0.0002,2]
[358783501,1745423439751,-421.12787737,0.0002,2]
[358783721,1745423442085,-597.7676,0.0002,2]
[358783723,1745423442096,-11441.68387309,0.0002,2]
[358783726,1745423442108,-9279.63270241,0.0002,2]
[358783728,1745423442119,-6334.74504096,0.0002,2]
[358783747,1745423442305,-2060712.37316464,0.0002,2]
[358783749,1745423442315,-41232.86796624,0.0002,2]
[358783751,1745423442325,-5400.0,0.0002,2]
[358783753,1745423442335,-5647.72483966,0.0002,2]
[358783755,1745423442345,-2929051.02447148,0.0002,2]
[358783819,1745423442966,-20739.00387539,0.0002,2]
[358783822,1745423442980,-380915.53136219,0.0002,2]
[358783825,1745423442994,-44155.02086832,0.0002,2]
[358783954,1745423444176,-579.22586727,0.00019773,2]
[358783956,1745423444186,-1843.71073633,0.00019829,2]
[358783959,1745423444196,-3718.60080332,0.0002,2]
[358783962,1745423444214,-1653.14092178,0.0002,2]
[358783979,1745423444357,-1099.6703068,0.0002,2]
[358783986,1745423444415,-14157.84392332,0.0002,2]
[358784193,1745423446447,-3214.36718567,0.0002,2]
[358784205,1745423446558,-5999.59622604,0.0002,2]
[358784221,1745423446704,-579.22586724,0.00019787,2]
[358784223,1745423446713,-36449.3343931,0.0002,2]
[358784225,1745423446724,-4780.39401661,0.0002,2]
[358784574,1745423457877,2000.0,0.00037808,60]
[358784575,1745423460351,362.83461,0.0002286,30]
[358784576,1745423460404,362.83461,0.0002292,30]
[358784577,1745423460484,362.83461,0.0002309,30]
[358784578,1745423460642,362.83461,0.0002355,31]
[358784579,1745423460734,362.83461,0.0002339,31]
[358784580,1745423460786,362.83462,0.0002324,30]
[358784581,1745423471778,232.04015,0.0002,23]
[358784582,1745423487112,2000.0,0.00037808,60]
[358784583,1745423488100,500.0,0.0001982,7]
[358784584,1745423510266,2000.0,0.00037808,60]
[358784586,1745423526924,2000.0,0.00037808,60]
[358784587,1745423531797,-2685.51,0.00019753,2]
[358784588,1745423531823,-150.0,0.00019756,2]
[358784589,1745423531846,-175.41866612,0.00019758,2]
[358784590,1745423531870,-861.6383,0.00019773,2]
[358784591,1745423532220,-579.22586724,0.00019801,2]
[358784592,1745423532252,-579.22586724,0.00019815,2]
[358784593,1745423532277,-150.0,0.0001982,2]
[358784594,1745423532303,-579.22586724,0.00019829,2]
[358784595,1745423532331,-1843.71073633,0.00019844,2]
[358784596,1745423532357,-579.22586724,0.00019844,2]
[358784597,1745423532383,-1843.71073633,0.00019858,2]
[358784598,1745423532409,-579.22586724,0.00019858,2]
[358784599,1745423532435,-1843.71073633,0.00019872,2]
[358784600,1745423532462,-579.22586724,0.00019872,2]
[358784601,1745423532501,500.0,0.00019436,2]
[358784602,1745423539465,150.0,0.00019207,2]
[358784603,1745423552380,8743.88222502,0.0001893,2]
[358784604,1745423552410,22195.68847498,0.0001893,2]
[358784605,1745423554082,1216.856,0.00037808,60]
[358784608,1745423590337,500.0,0.00037808,60]
[358784609,1745423648686,500.0,0.000378,60]
[358784610,1745423655961,999.99,0.00037808,60]
[358784611,1745423657244,500.0,0.000378,60]
[358784612,1745423659324,550.40377756,0.00037808,60]
[358784613,1745423666390,500.0,0.000378,60]
[358784614,1745423686929,2298.278328,0.000378,60]
[358784615,1745423700499,1500.0,0.00032877,120]
[358784616,1745423703627,280.09169464,0.000372,120]
[358784617,1745423706830,1532.6,0.000378,60]
[358784618,1745423708516,280.09169462,0.000372,120]
[358784619,1745423713289,280.09169462,0.000372,120]
[358784621,1745423783658,500.0003,0.000378,60]
[358784623,1745423858673,-600.0,0.00019105,2]
[358784624,1745423950972,-184.00731301,0.00019116,2]
[358784625,1745424007507,-176.44300595,0.0001902,2]
[358784626,1745424014126,789.3403012,0.00018565,2]
[358784627,1745424014512,789.3403012,0.00018749,2]
[358784628,1745424015691,-72.75667605,0.0001902,2]
[358784629,1745424015716,-227.24332395,0.00019115,2]
[358784630,1745424039614,150.0,0.00027,120]
[358784631,1745424040237,150.0,0.000323,120]
[358784632,1745424040932,150.0,0.000376,120]
[358784635,1745424049870,23900.0,0.00018936,2]
[358784636,1745424050781,-448.21017484,0.00019115,2]
[358784638,1745424063389,248.23449668,0.0002,3]
[358784639,1745424065851,-152.0,0.00019105,2]
[358784640,1745424073786,206.39,0.00015044,2]
[358784641,1745424075151,-0.01190247,0.00019105,2]
[358784642,1745424075174,-151.98809753,0.00019107,2]
[358784643,1745424090104,13245.24,0.00018863,2]
[358784644,1745424090885,-0.02380493,0.00019107,2]
[358784645,1745424090910,-113.88680241,0.00019115,2]
[358784649,1745424143925,-150.0,0.0001902,2]
[358784650,1745424150502,-269.51691043,0.00019011,2]
[358784651,1745424155810,2000.0,0.00018856,2]
[358784652,1745424155832,2000.0,0.00018856,2]
[358784653,1745424155853,2000.0,0.00018856,2]
[358784654,1745424155874,2000.0,0.00018856,2]
[358784655,1745424155897,19529.33,0.00018856,2]
[358784656,1745424157662,-148.33749857,0.00019011,2]
[358784657,1745424157686,-466.34,0.0001902,2]
[358784658,1745424157713,-132.89250143,0.00019107,2]
[358784659,1745424165078,250.0,0.00017,2]
[358784660,1745424165755,300.0,0.00019,2]
[358784661,1745424171620,186.72779642,0.000372,120]
[358784662,1745424176511,186.72779641,0.000372,120]
[358784663,1745424176942,-42.31982969,0.00019107,2]
[358784664,1745424176966,-109.68017031,0.00019107,2]
[358784668,1745424246493,-42.31982969,0.00019107,2]
[358784669,1745424246519,-207.83288531,0.00019107,2]
[358784672,1745424288269,-262.97871999,0.00019011,2]
[358784673,1745424292337,1495.79777,0.00037808,60]
[358784674,1745424303099,-139.17399501,0.00019011,2]
[358784675,1745424303126,-23.91440871,0.00019106,2]
[358784678,1745424311128,500.0,0.00032876,120]
[358784679,1745424311354,500.0,0.00032876,120]
[358784680,1745424311615,500.0,0.00032876,120]
[358784681,1745424311849,500.0,0.00032876,120]
[358784682,1745424312499,500.0,0.00032876,120]
[358784683,1745424312664,500.0,0.00032876,120]
[358784684,1745424312837,500.0,0.00032876,120]
[358784685,1745424313010,500.0,0.00032876,120]
[358784686,1745424313412,500.0,0.00032876,120]
[358784687,1745424313714,544.37990978,0.00032876,120]
[358784688,1745424319538,1162.51,0.0001896,2]
[358784689,1745424320578,1162.51,0.00026071,120]
[358784690,1745424320815,1162.51,0.00028441,120]
[358784695,1745424388873,378.2465657,0.00037808,60]
[358784700,1745424425816,200.0,0.00018767,2]
[358784701,1745424441895,87.49,0.00018925,2]
[358784702,1745424441916,75.598404,0.00018925,2]
[358784705,1745424500349,236.77,0.00018774,2]
[358784711,1745424592824,1687.631596,0.00018672,2]
[358784712,1745424592848,1063.368404,0.00018672,2]
[358784713,1745424593480,-150.0,0.0001902,2]
[358784714,1745424593503,-115.82810154,0.00019093,2]
[358784716,1745424616604,-59.38422957,0.00019093,2]
[358784717,1745424616630,-131.50706684,0.00019106,2]
[358784718,1745424619351,2143.82,0.00016801,2]
[358784719,1745424620520,-243.11719965,0.00019064,2]
[358784720,1745424621628,186.72779641,0.000372,120]
[358784721,1745424622176,500.0,0.00018718,2]
[358784723,1745424628684,-300.0,0.00019064,2]
[358784733,1745424632723,-1600.70280035,0.00019064,2]
[358784735,1745424632733,-768.49293316,0.00019106,2]
[358784737,1745424632743,-8856.68345356,0.00019106,2]
[358784739,1745424632753,-150.0,0.00019107,2]
[358784741,1745424632763,-8150.16711469,0.00019107,2]
[358784743,1745424632772,-300.0,0.00019192,2]
[358784745,1745424632782,-300.0,0.00019192,2]
[358784747,1745424632791,-568.0,0.00019193,2]
[358784749,1745424632800,-503.02,0.00019204,2]
[358784751,1745424632810,-500.0,0.00019207,2]
[358784753,1745424632819,-1624.07,0.00019207,2]
[358784755,1745424632829,-1852.42,0.00019251,2]
[358784758,1745424632838,-333.04,0.00019251,2]
[358784760,1745424632848,-14536.85,0.00019251,2]
[358784762,1745424632857,-150.99,0.00019251,2]
[358784764,1745424632867,-6477.83157948,0.00019313,2]
[358784774,1745424632938,-41827.92614598,0.00019313,2]
[358784810,1745424638408,-281.758084,0.00019313,2]
[358785028,1745424640952,-2131.62716614,0.00019313,2]
[358785071,1745424641356,-1359.95656074,0.00019313,2]
[358785073,1745424641368,-271.83135032,0.00019313,2]
[358785076,1745424641380,-1854.46000624,0.00019313,2]
[358785078,1745424641391,-14269.38329397,0.00019313,2]
[358785080,1745424641401,-8231.99,0.00019313,2]
[358785082,1745424641410,-999.99,0.00019313,2]
[358785084,1745424641420,-4821.55670603,0.00019313,2]
[358785086,1745424641431,-5178.43329397,0.00019313,2]
[358785088,1745424641441,-13410.12,0.00019314,2]
[358785090,1745424641452,-500.0,0.00019373,2]
[358785092,1745424641461,-500.0,0.00019373,2]
[358785094,1745424641471,-500.0,0.00019373,2]
[358785096,1745424641480,-500.0,0.00019373,2]
[358785098,1745424641490,-1993.0462506,0.00019489,2]
[358785100,1745424641500,-778.89772591,0.00019543,2]
[358785102,1745424641510,-5357.15,0.00019548,2]
[358785104,1745424641519,-1959.47,0.00019589,2]
[358785106,1745424641529,-209.01,0.00019632,2]
[358785108,1745424641538,-1000.0,0.00019683,2]
[358785110,1745424641548,-250.0,0.00019683,2]
[358785113,1745424641557,-886.36,0.00019683,2]
[358785115,1745424641567,-269.6374,0.00019786,2]
[358785117,1745424641577,-1000.0,0.00019786,2]
[358785118,1745424641586,-2500.0,0.00019786,2]
[358785120,1745424641596,-778.89772591,0.00019857,2]
[358785123,1745424641605,-3591.112,0.00019885,2]
[358785125,1745424641619,-168.019,0.00019885,2]
[358785127,1745424641628,-40225.38219969,0.00019886,2]
[358785129,1745424641640,-8399.72289317,0.00019886,2]
[358785346,1745424643519,-553.89618302,0.00019886,2]
[358785396,1745424644004,-3247.73402412,0.00019886,2]
[358785398,1745424644015,-316.4595,0.00019886,2]
[358785400,1745424644024,-1000.0,0.00019886,2]
[358785402,1745424644034,-1133.01238393,0.00019899,2]
[358785404,1745424644044,-295.03691014,0.000199,2]
[358785406,1745424644053,-500.83530021,0.00019973,2]
[358785408,1745424644062,-500.0,0.00019973,2]
[358785410,1745424644072,-500.0,0.00019973,2]
[358785412,1745424644082,-228.78479006,0.00019973,2]
[358785414,1745424644092,-500.0,0.00019973,2]
[358785416,1745424644102,-500.0,0.00019973,2]
[358785418,1745424644111,-499.17900117,0.00019973,2]
[358785420,1745424644121,-500.0,0.00019973,2]
[358785422,1745424644131,-500.0,0.00019973,2]
[358785424,1745424644141,-528.94035995,0.00019973,2]
[358785426,1745424644150,-500.0,0.00019973,2]
[358785428,1745424644160,-500.0,0.00019973,2]
[358785430,1745424644170,-500.0,0.00019973,2]
[358785432,1745424644179,-504.5226041,0.00019973,2]
[358785434,1745424644189,-503.25922459,0.00019973,2]
[358785436,1745424644199,-516.48649534,0.00019973,2]
[358785438,1745424644210,-5010.48431197,0.00019986,2]
[358785760,1745424647316,-4620.16175024,0.00019986,2]
[358785762,1745424647328,-88611.69394745,0.00019986,2]
[358785764,1745424647340,-9294.0363346,0.00019986,2]
[358785803,1745424647760,-82044.57290764,0.00019986,2]
[358785805,1745424647770,-300.0,0.00019999,2]
[358785807,1745424647779,-300.0,0.00019999,2]
[358785809,1745424647789,-300.0,0.00019999,2]
[358785811,1745424647799,-251.71516815,0.00019999,2]
[358785813,1745424647810,-219.39357879,0.00019999,2]
[358785814,1745424647820,-204.64319519,0.00019999,2]
[358785815,1745424647831,-7307.8940576,0.00019999,2]
[358785816,1745424647840,-634532.27700338,0.0002,2]
[358785825,1745424648010,-16921.50054679,0.0002,2]
[358785827,1745424648022,-465.1,0.0002,2]
[358785829,1745424648035,-20869.71024887,0.0002,2]
[358785853,1745424652464,-320.41690716,0.0002,2]
[358785854,1745424675021,-236.57687709,0.00019456,2]
[358785855,1745424681685,-194.42542069,0.0001925,2]
[358785856,1745424700102,1000.0,0.00037,120]
[358785857,1745424709948,-152.0,0.0001925,2]
[358785858,1745424714215,1000.0,0.00037,60]
[358785859,1745424721678,-223.60785227,0.0001925,2]
[358785860,1745424721702,-26.39214773,0.00019456,2]
[358785861,1745424727895,-152.0,0.00019353,2]
[358785862,1745424739591,22000.0,0.00037808,60]
[358785863,1745424741734,-98.0,0.00019353,2]
[358785864,1745424741757,-150.0,0.00019353,2]